bitfinex/quotes_BTCUSD_20240927
["timestamp","ask_amount","ask_price","bid_price","bid_amount"]
[1727461834624,0.52089859,65746.0,65745.0,0.000828]
[1727461836503,0.63447122,65746.0,65745.0,0.000828]
[1727461836736,0.54474573,65746.0,65745.0,0.000828]
[1727461837617,0.54674573,65746.0,65745.0,0.000828]
[1727461838069,0.54474573,65746.0,65745.0,0.000828]
[1727461839021,0.54674573,65746.0,65745.0,0.000828]
[1727461839487,0.54474573,65746.0,65745.0,0.000828]
[1727461841446,0.54674573,65746.0,65745.0,0.000828]
[1727461841678,0.356925,65735.0,65734.0,0.000828]
[1727461841913,0.51696575,65735.0,65734.0,0.000828]
[1727461842145,0.38070192,65735.0,65734.0,0.000828]
[1727461842387,0.516889,65735.0,65734.0,0.000828]
[1727461842619,0.39658648,65735.0,65734.0,0.000828]
[1727461842863,0.54113524,65735.0,65734.0,0.000828]
[1727461843361,0.55513524,65735.0,65734.0,0.000828]
[1727461843833,0.56913524,65735.0,65734.0,0.000828]
[1727461844571,0.55413524,65735.0,65734.0,0.000828]
[1727461844806,0.59198838,65735.0,65734.0,0.000828]
[1727461845299,0.59598081,65735.0,65734.0,0.000828]
[1727461845775,0.69535166,65735.0,65734.0,0.000828]
[1727461846009,0.70935166,65735.0,65734.0,0.000828]
[1727461846245,0.69535166,65735.0,65734.0,0.000828]
[1727461846942,0.70935166,65735.0,65734.0,0.000828]
[1727461847179,0.69535166,65735.0,65734.0,0.000828]
[1727461847381,0.59598081,65735.0,65734.0,0.000828]
[1727461848339,0.58198081,65735.0,65734.0,0.000828]
[1727461848573,0.67263406,65735.0,65734.0,0.000828]
[1727461848840,0.5280853,65735.0,65734.0,0.000828]
[1727461849342,0.152156,65722.0,65721.0,4.2e-07]
[1727461849637,0.38152149,65722.0,65721.0,4.2e-07]
[1727461849841,0.38152149,65722.0,65715.0,0.22727898]
[1727461849842,0.152169,65716.0,65715.0,0.22727898]
[1727461850095,0.30143415,65716.0,65715.0,0.000828]
[1727461852509,0.43590412,65716.0,65715.0,0.000828]
[1727461852758,0.45976537,65716.0,65715.0,0.000828]
[1727461852993,0.43590412,65716.0,65715.0,0.000828]
[1727461853216,0.44990412,65716.0,65715.0,0.000828]
[1727461853450,0.44190412,65716.0,65715.0,0.000828]
[1727461853917,0.45590412,65716.0,65715.0,0.000828]
[1727461854154,0.44190412,65716.0,65715.0,0.000828]
[1727461854641,0.45590412,65716.0,65715.0,0.000828]
[1727461855130,0.33327856,65716.0,65715.0,0.000828]
[1727461857769,0.34916312,65716.0,65715.0,0.000828]
[1727461858238,0.34898007,65716.0,65715.0,0.000828]
[1727461862068,0.22598007,65716.0,65715.0,0.27703545]
[1727461862315,0.22213566,65716.0,65715.0,0.100628]
[1727461863042,0.20813566,65716.0,65715.0,0.100628]
[1727461863230,0.20213566,65716.0,65715.0,0.100628]
[1727461863499,0.20913566,65716.0,65715.0,0.100628]
[1727461863708,0.20213566,65716.0,65715.0,0.100628]
[1727461863941,0.25913444,65716.0,65715.0,0.100628]
[1727461864461,0.25113444,65716.0,65715.0,0.100628]
[1727461864947,0.25213444,65716.0,65715.0,0.100628]
[1727461865923,0.25113444,65716.0,65715.0,0.100628]
[1727461866381,0.25613444,65716.0,65715.0,0.100628]
[1727461866627,0.19913566,65716.0,65715.0,0.100628]
[1727461866861,0.20613566,65716.0,65715.0,0.100628]
[1727461867092,0.19913566,65716.0,65715.0,0.100628]
[1727461867593,0.20013566,65716.0,65715.0,0.100628]
[1727461867822,0.30684037,65716.0,65715.0,0.100628]
[1727461868052,0.30984037,65716.0,65715.0,0.100628]
[1727461868498,0.33369753,65716.0,65715.0,0.100628]
[1727461869251,0.43369753,65716.0,65715.0,0.000828]
[1727461869478,0.45835353,65716.0,65715.0,0.000828]
[1727461869703,0.54015353,65716.0,65715.0,0.000828]
[1727461870148,0.53915353,65716.0,65715.0,0.000828]
[1727461870639,0.55315353,65716.0,65715.0,0.000828]
[1727461871096,0.53915353,65716.0,65715.0,0.000828]
[1727461871351,0.54715353,65716.0,65715.0,0.000828]
[1727461871599,0.51229637,65716.0,65715.0,0.000828]
[1727461871833,0.52629637,65716.0,65715.0,0.000828]
[1727461871998,0.54029637,65716.0,65715.0,0.000828]
[1727461872213,0.52629637,65716.0,65715.0,0.000828]
[1727461872496,0.52629637,65716.0,65715.0,1e-06]
[1727461872497,0.54029637,65716.0,65715.0,1e-06]
[1727461872771,0.54029637,65716.0,65714.0,0.000828]
[1727461872772,0.27415722,65715.0,65714.0,1e-06]
[1727461872937,0.27415722,65715.0,65708.0,0.19142826]
[1727461872938,0.275186,65709.0,65708.0,0.19142826]
[1727461873073,0.30260903,65709.0,65708.0,0.19142826]
[1727461873656,0.31849359,65709.0,65708.0,0.19142826]
[1727461874098,0.31849359,65709.0,65708.0,0.03025402]
[1727461874099,0.63124457,65709.0,65708.0,0.03025402]
[1727461874345,0.128,65706.0,65700.0,0.00024584]
[1727461874585,0.30796346,65706.0,65700.0,0.00024584]
[1727461874826,0.33182768,65706.0,65700.0,0.00024584]
[1727461875529,0.34782768,65706.0,65700.0,0.00024584]
[1727461875768,0.005,65703.0,65700.0,0.00024584]
[1727461876009,0.28043775,65701.0,65700.0,0.00024584]
[1727461876236,0.30343775,65701.0,65700.0,0.00024584]
[1727461876462,0.38853775,65701.0,65700.0,0.00024584]
[1727461877786,0.40640111,65701.0,65700.0,0.00024584]
[1727461878025,0.55539973,65701.0,65700.0,0.00024584]
[1727461878483,0.56939973,65701.0,65700.0,0.00024584]
[1727461879838,0.56939973,65701.0,65684.0,0.0009987]
[1727461879839,0.123,65687.0,65684.0,0.0009987]
[1727461880047,0.275241,65685.0,65684.0,0.0009987]
[1727461880294,0.252253,65680.0,65673.0,0.22645098]
[1727461880505,0.275253,65680.0,65673.0,0.22645098]
[1727461880730,0.275253,65680.0,65679.0,0.097728]
[1727461880731,0.252253,65680.0,65679.0,0.097728]
[1727461881162,0.40349787,65680.0,65679.0,0.000828]
[1727461881385,0.28692517,65680.0,65679.0,0.177928]
[1727461882567,0.29092517,65680.0,65679.0,0.177928]
[1727461882805,0.34814936,65680.0,65679.0,0.177928]
[1727461883047,0.29292517,65680.0,65679.0,0.177928]
[1727461883280,0.006,65680.0,65679.0,0.35433545]
[1727461883519,0.40256188,65685.0,65680.0,0.0899]
[1727461883751,0.009,65680.0,65679.0,0.17723545]
[1727461883990,0.009,65680.0,65679.0,0.25563545]
[1727461884224,0.22645098,65685.0,65680.0,0.082]
[1727461884465,0.152247,65683.0,65680.0,0.082]
[1727461884700,0.304483,65686.0,65680.0,0.082]
[1727461884940,0.0303772,65686.0,65680.0,0.082]
[1727461885176,0.304467,65689.0,65683.0,0.17640745]
[1727461885416,0.03002953,65688.0,65684.0,0.08504441]
[1727461885653,0.304439,65695.0,65684.0,0.08504441]
[1727461885654,0.304384,65707.0,65688.0,0.0781]
[1727461885882,0.22645098,65698.0,65690.0,0.0781]
[1727461886129,0.22645098,65712.0,65690.0,0.0781]
[1727461886130,0.02892879,65703.0,65692.0,0.0781]
[1727461886368,0.152202,65702.0,65701.0,0.25450745]
[1727461886612,0.02892879,65703.0,65701.0,0.35040745]
[1727461886846,0.18112879,65703.0,65702.0,0.00304374]
[1727461887075,0.152202,65702.0,65701.0,0.35040745]
[1727461887305,0.152202,65702.0,65701.0,0.174]
[1727461887306,0.18043575,65702.0,65701.0,0.174]
[1727461887526,0.152202,65702.0,65701.0,0.174]
[1727461887767,0.152202,65702.0,65701.0,0.179]
[1727461888038,0.152202,65702.0,65701.0,0.174]
[1727461889436,0.153202,65702.0,65701.0,0.174]
[1727461889666,0.153202,65702.0,65701.0,0.178]
[1727461889885,0.152202,65702.0,65701.0,0.178]
[1727461890350,0.152202,65702.0,65701.0,0.183]
[1727461890805,0.2513104,65702.0,65701.0,0.183]
[1727461891029,0.152202,65702.0,65701.0,0.178]
[1727461891495,0.152202,65702.0,65701.0,0.174]
[1727461891724,0.153202,65702.0,65701.0,0.174]
[1727461892363,0.152202,65702.0,65701.0,0.174]
[1727461892587,0.158202,65702.0,65701.0,0.175]
[1727461892803,0.26549905,65702.0,65701.0,0.175]
[1727461893020,0.26549905,65702.0,65701.0,0.001]
[1727461893468,0.152218,65695.0,65694.0,0.0797]
[1727461893735,0.18126264,65695.0,65694.0,0.0797]
[1727461893964,0.152218,65695.0,65694.0,0.25610745]
[1727461894508,0.15221,65699.0,65694.0,0.2641515]
[1727461894707,0.02288456,65702.0,65695.0,0.09924379]
[1727461894708,0.152211,65698.0,65695.0,0.09924379]
[1727461894911,0.152211,65698.0,65697.0,0.17640745]
[1727461895935,0.25314805,65698.0,65697.0,0.17640745]
[1727461896157,0.152216,65696.0,65695.0,0.1773]
[1727461896631,0.15223,65690.0,65689.0,0.000828]
[1727461897990,0.15323,65690.0,65689.0,0.007828]
[1727461898214,0.001,65690.0,65689.0,0.17977214]
[1727461898439,0.15323,65690.0,65689.0,0.176728]
[1727461898634,0.15323,65690.0,65689.0,0.182728]
[1727461898635,0.15423,65690.0,65689.0,0.182728]
[1727461898856,0.002,65690.0,65689.0,0.182728]
[1727461899312,0.001,65690.0,65689.0,0.176728]
[1727461899559,0.001,65690.0,65689.0,0.180728]
[1727461899777,0.22645098,65696.0,65689.0,0.17677208]
[1727461899984,0.15222,65694.0,65693.0,0.17640745]
[1727461900644,0.304423,65698.0,65693.0,0.17640745]
[1727461900917,0.02892879,65701.0,65694.0,0.00304399]
[1727461900918,0.30443,65697.0,65694.0,0.00304399]
[1727461901145,0.30443,65697.0,65696.0,0.17640745]
[1727461901423,0.456643,65697.0,65696.0,0.17640745]
[1727461902056,0.15222,65694.0,65693.0,0.005]
[1727461902723,0.304428,65697.0,65692.0,0.17640745]
[1727461902946,0.304428,65697.0,65696.0,0.17640745]
[1727461902947,0.001,65697.0,65696.0,0.17640745]
[1727461903165,0.153213,65697.0,65696.0,0.17640745]
[1727461903414,0.001,65697.0,65696.0,0.17640745]
[1727461903645,0.32194956,65702.0,65696.0,0.35520745]
[1727461903859,0.15221,65699.0,65697.0,0.00304381]
[1727461904079,0.32194956,65702.0,65697.0,0.00304381]
[1727461904298,0.01754056,65702.0,65697.0,0.00304381]
[1727461904512,0.152211,65699.0,65697.0,0.00304381]
[1727461904765,0.30441,65701.0,65696.0,0.1788]
[1727461904974,0.01754056,65702.0,65698.0,0.17640745]
[1727461905185,0.152205,65701.0,65698.0,0.17640745]
[1727461905408,0.01754056,65702.0,65698.0,0.17640745]
[1727461905836,0.32194856,65702.0,65698.0,0.17640745]
[1727461906072,0.152208,65700.0,65698.0,0.17640745]
[1727461906296,0.32194856,65702.0,65698.0,0.17640745]
[1727461906297,0.01754056,65702.0,65698.0,0.18040745]
[1727461906529,0.16974256,65702.0,65698.0,0.18040745]
[1727461906753,0.152209,65699.0,65698.0,0.18640745]
[1727461906985,0.01754056,65702.0,65698.0,0.18040745]
[1727461907230,0.001,65700.0,65698.0,0.18740745]
[1727461907488,0.153208,65700.0,65698.0,0.18740745]
[1727461907719,0.153859,65702.0,65699.0,0.083]
[1727461907956,0.152204,65701.0,65700.0,0.0996]
[1727461908433,0.001656,65702.0,65700.0,0.1026437]
[1727461908704,0.001656,65702.0,65701.0,0.083]
[1727461908953,0.001656,65702.0,65701.0,0.25940745]
[1727461909202,0.153858,65702.0,65701.0,0.25940745]
[1727461909677,0.001656,65702.0,65701.0,0.25940745]
[1727461909907,0.153858,65702.0,65701.0,0.25940745]
[1727461910143,0.001656,65702.0,65701.0,0.25940745]
[1727461910377,0.153858,65702.0,65701.0,0.25940745]
[1727461910608,0.001656,65702.0,65701.0,0.25940745]
[1727461911113,0.001656,65702.0,65701.0,0.27245103]
[1727461911361,0.001656,65702.0,65701.0,0.42465503]
[1727461911597,0.001656,65702.0,65701.0,0.42161145]
[1727461912074,0.001656,65702.0,65701.0,0.26940745]
[1727461912308,0.001656,65702.0,65701.0,0.42161145]
[1727461912576,0.001656,65702.0,65701.0,0.42561145]
[1727461912806,0.001656,65702.0,65701.0,0.27340745]
[1727461913042,0.001656,65702.0,65701.0,0.42561145]
[1727461913266,0.001656,65702.0,65701.0,0.51961145]
[1727461914224,0.305997,65716.0,65708.0,0.005]
[1727461914225,0.22645098,65712.0,65708.0,0.005]
[1727461914444,0.22645098,65712.0,65705.0,0.1762]
[1727461914445,0.22645098,65712.0,65711.0,0.234381]
[1727461914672,0.22645098,65712.0,65711.0,0.33642403]
[1727461914901,0.001656,65716.0,65712.0,0.152177]
[1727461915136,0.001656,65716.0,65715.0,0.17640745]
[1727461915597,0.001656,65716.0,65715.0,0.32857945]
[1727461916282,0.002656,65716.0,65715.0,0.33757945]
[1727461916508,0.002656,65716.0,65715.0,0.34557945]
[1727461916509,0.003656,65716.0,65715.0,0.34557945]
[1727461916731,0.003656,65716.0,65715.0,0.51687945]
[1727461917687,0.002,65733.0,65715.0,0.51687945]
[1727461917688,0.152135,65731.0,65727.0,0.152144]
[1727461917919,0.30965098,65745.0,65722.0,0.304308]
[1727461917920,0.153782,65735.0,65730.0,0.152136]
[1727461918156,0.001656,65735.0,65732.0,0.17640745]
[1727461918402,0.001656,65735.0,65733.0,0.00304221]
[1727461918403,0.152128,65734.0,65733.0,0.00304221]
[1727461918635,0.001656,65735.0,65733.0,0.00304221]
[1727461918862,0.152128,65734.0,65733.0,0.00304221]
[1727461919314,0.001656,65735.0,65733.0,0.00304228]
[1727461919547,0.001656,65735.0,65734.0,0.15517011]
[1727461920037,0.001656,65735.0,65734.0,0.23667011]
[1727461920319,0.001656,65735.0,65734.0,0.233628]
[1727461920847,0.001656,65735.0,65733.0,0.1041]
[1727461920848,0.304259,65734.0,65733.0,0.002]
[1727461921077,0.48091601,65734.0,65733.0,0.002]
[1727461921300,0.15214,65729.0,65727.0,0.22645098]
[1727461921535,0.152142,65728.0,65727.0,0.22645098]
[1727461921741,0.02487617,65733.0,65721.0,0.17740385]
[1727461921977,0.304272,65731.0,65721.0,0.17740385]
[1727461922203,0.152138,65730.0,65721.0,0.17740385]
[1727461922427,0.152142,65728.0,65727.0,0.005]
[1727461922676,0.152142,65728.0,65727.0,0.009]
[1727461922914,0.152142,65728.0,65727.0,0.004]
[1727461924096,0.304266,65732.0,65725.0,0.17640745]
[1727461924325,0.152146,65726.0,65725.0,0.17640745]
[1727461924794,0.004,65730.0,65725.0,0.17640745]
[1727461925027,0.304251,65736.0,65731.0,0.152134]
[1727461925028,0.153822,65735.0,65731.0,0.152134]
[1727461925275,0.15213,65733.0,65732.0,0.0802]
[1727461925504,0.153823,65735.0,65734.0,0.17640745]
[1727461926222,0.001696,65735.0,65734.0,0.17640745]
[1727461926448,0.001696,65735.0,65734.0,0.17944961]
[1727461926905,0.001696,65735.0,65734.0,0.33157761]
[1727461927168,0.001696,65735.0,65734.0,0.18440745]
[1727461927396,0.001696,65735.0,65734.0,0.33957753]
[1727461927620,0.304228,65740.0,65737.0,0.17640745]
[1727461928145,0.304213,65744.0,65737.0,0.27040745]
[1727461928379,0.152105,65744.0,65743.0,0.17640745]
[1727461928630,0.3042,65747.0,65743.0,0.17640745]
[1727461928631,0.3042,65747.0,65743.0,0.17944922]
[1727461928876,0.304182,65751.0,65744.0,0.0815]
[1727461929106,0.304182,65751.0,65749.0,0.17640745]
[1727461929341,0.32005056,65754.0,65749.0,0.17640745]
[1727461929342,0.01588456,65754.0,65749.0,0.32850045]
[1727461929571,0.22645098,65754.0,65749.0,0.17640745]
[1727461930022,0.153747,65750.0,65749.0,0.17640745]
[1727461930262,0.304217,65743.0,65740.0,0.17640745]
[1727461930500,0.003656,65750.0,65741.0,0.22645098]
[1727461930501,0.15211,65742.0,65741.0,0.22645098]
[1727461930755,0.304219,65742.0,65737.0,0.0817]
[1727461931006,0.304228,65741.0,65736.0,0.094]
[1727461931256,0.152119,65738.0,65734.0,0.22645098]
[1727461931474,0.152126,65735.0,65732.0,0.0918]
[1727461931711,0.152128,65734.0,65732.0,0.0818]
[1727461931929,0.152121,65737.0,65732.0,0.238932]
[1727461932174,0.152115,65740.0,65735.0,0.17640745]
[1727461932397,0.152112,65741.0,65735.0,0.17640745]
[1727461932629,0.152119,65738.0,65735.0,0.17640745]
[1727461932864,0.304217,65743.0,65739.0,0.17640745]
[1727461933113,0.152123,65736.0,65735.0,0.17640745]
[1727461933339,0.304225,65741.0,65735.0,0.17640745]
[1727461933787,0.152119,65738.0,65735.0,0.18440745]
[1727461934007,0.02542986,65746.0,65735.0,0.18440745]
[1727461934275,0.152123,65736.0,65735.0,0.17640745]
[1727461934775,0.304216,65743.0,65735.0,0.17640745]
[1727461934776,0.304233,65739.0,65735.0,0.17640745]
[1727461935001,0.02542986,65746.0,65735.0,0.17640745]
[1727461935002,0.152123,65736.0,65735.0,0.17640745]
[1727461935229,0.02342986,65746.0,65732.0,0.0818]
[1727461935230,0.152128,65734.0,65732.0,0.0818]
[1727461935455,0.02642986,65746.0,65732.0,0.0818]
[1727461935685,0.304227,65741.0,65735.0,0.18240745]
[1727461935927,0.02342986,65746.0,65735.0,0.17640745]
[1727461936170,0.304242,65738.0,65735.0,0.18340745]
[1727461936407,0.02542986,65746.0,65735.0,0.19040745]
[1727461936408,0.304232,65740.0,65735.0,0.19040745]
[1727461936638,0.152123,65736.0,65735.0,0.19040745]
[1727461936844,0.152123,65736.0,65735.0,0.19640745]
[1727461937079,0.152123,65736.0,65735.0,0.18340745]
[1727461937329,0.304232,65740.0,65735.0,0.18340745]
[1727461937564,0.152123,65736.0,65735.0,0.006]
[1727461938048,0.152123,65736.0,65735.0,0.01]
[1727461938301,0.152119,65738.0,65735.0,0.01]
[1727461938542,0.304209,65745.0,65735.0,0.18240745]
[1727461938781,0.30422,65742.0,65735.0,0.17840745]
[1727461939021,0.152111,65742.0,65735.0,0.18940745]
[1727461939271,0.152114,65740.0,65739.0,0.40285843]
[1727461939511,0.456315,65744.0,65739.0,0.32852245]
[1727461939733,0.305838,65750.0,65745.0,0.17640745]
[1727461939961,0.305838,65750.0,65749.0,0.17640745]
[1727461940186,0.457929,65750.0,65749.0,0.17640745]
[1727461940654,0.304196,65747.0,65745.0,0.17640745]
[1727461940876,0.304196,65747.0,65738.0,0.22645098]
[1727461940877,0.152116,65739.0,65738.0,0.22645098]
[1727461941107,0.152108,65743.0,65738.0,0.22645098]
[1727461941335,0.22645098,65744.0,65740.0,0.17640745]
[1727461941556,0.152112,65741.0,65740.0,0.17640745]
[1727461941746,0.02331416,65749.0,65740.0,0.17640745]
[1727461941996,0.1521,65746.0,65745.0,0.007]
[1727461942467,0.152094,65749.0,65745.0,0.152102]
[1727461942688,0.152093,65749.0,65748.0,0.17640745]
[1727461943594,0.1521,65746.0,65745.0,0.005]
[1727461943809,0.1521,65746.0,65745.0,0.007]
[1727461944266,0.16767164,65746.0,65745.0,0.007]
[1727461944502,0.16767164,65746.0,65745.0,0.01]
[1727461944959,0.01557164,65746.0,65745.0,0.003]
[1727461945416,0.16767164,65746.0,65745.0,0.003]
[1727461945689,0.01557164,65746.0,65745.0,0.003]
[1727461945924,0.01558417,65746.0,65745.0,0.46234759]
[1727461946169,0.01558417,65746.0,65745.0,0.459306]
[1727461946388,0.01558417,65746.0,65745.0,0.160102]
[1727461946630,0.01558417,65746.0,65745.0,0.008]
[1727461947326,0.01558417,65746.0,65745.0,0.160102]
[1727461949296,0.001654,65747.0,65746.0,0.1521]
[1727461949557,0.0173302,65747.0,65746.0,0.1521]
[1727461950687,0.0173302,65747.0,65746.0,0.1541]
[1727461951538,0.0173302,65747.0,65746.0,0.1521]
[1727461952050,0.0173302,65747.0,65746.0,0.1641]
[1727461952243,0.0173302,65747.0,65746.0,0.012]
[1727461952503,0.0173302,65747.0,65746.0,0.1781]
[1727461953396,0.0173302,65747.0,65746.0,0.1701]
[1727461953878,0.0173302,65747.0,65746.0,0.1821]
[1727461954569,0.0173302,65747.0,65746.0,0.03]
[1727461955508,0.1694282,65747.0,65746.0,0.03]
[1727461955733,0.0173302,65747.0,65746.0,0.03]
[1727461955954,0.16938971,65747.0,65746.0,0.03]
[1727461956185,0.01729171,65747.0,65746.0,0.03]
[1727461956413,0.153752,65747.0,65746.0,0.03]
[1727461956629,0.001654,65747.0,65746.0,0.03]
[1727461956857,0.153752,65747.0,65746.0,0.03]
[1727461957788,0.001654,65747.0,65746.0,0.03]
[1727461958529,0.001654,65747.0,65746.0,0.1821]
[1727461958762,0.001654,65747.0,65746.0,0.03]
[1727461959232,0.001654,65747.0,65746.0,0.18514161]
[1727461959757,0.001654,65747.0,65746.0,0.19014161]
[1727461962952,0.001654,65747.0,65746.0,0.26624161]
[1727461963201,0.001656,65750.0,65749.0,0.157093]
[1727461963462,0.01588456,65759.0,65749.0,0.157093]
[1727461963463,0.01588456,65759.0,65752.0,0.005]
[1727461963708,0.22810898,65768.0,65752.0,0.005]
[1727461963709,0.22645098,65760.0,65759.0,0.15207]
[1727461963957,0.22645098,65760.0,65759.0,0.50591843]
[1727461964189,0.22810898,65768.0,65764.0,0.152058]
[1727461964409,0.38015798,65768.0,65767.0,0.17640745]
[1727461965061,0.152058,65764.0,65763.0,0.17640745]
[1727461965742,0.152057,65765.0,65763.0,0.17640745]
[1727461966192,0.152058,65764.0,65763.0,0.17640745]
[1727461966669,0.305758,65768.0,65763.0,0.17640745]
[1727461966670,0.304106,65767.0,65763.0,0.17640745]
[1727461966895,0.304106,65767.0,65763.0,0.18340745]
[1727461967111,0.304109,65766.0,65763.0,0.18340745]
[1727461967355,0.152058,65764.0,65763.0,0.18340745]
[1727461967586,0.001658,65768.0,65765.0,0.152055]
[1727461967805,0.001658,65768.0,65767.0,0.17640745]
[1727461968256,0.001658,65768.0,65767.0,0.32845845]
[1727461969165,0.001658,65768.0,65767.0,0.17640745]
[1727461969386,0.001658,65768.0,65767.0,0.17944807]
[1727461970378,0.153707,65768.0,65767.0,0.17940745]
[1727461970617,0.153707,65768.0,65767.0,0.18440745]
[1727461970841,0.001658,65768.0,65767.0,0.18440745]
[1727461971096,0.153707,65768.0,65767.0,0.18440745]
[1727461971309,0.153707,65768.0,65767.0,0.008]
[1727461974155,0.001658,65768.0,65767.0,0.18440745]
[1727461974386,0.153707,65768.0,65767.0,0.18440745]
[1727461975302,0.001658,65768.0,65767.0,0.33645845]
[1727461975553,0.001658,65768.0,65767.0,0.66694639]
[1727461975777,0.22645098,65779.0,65778.0,0.152026]
[1727461976011,0.22645098,65779.0,65778.0,0.32843345]
[1727461976236,0.001656,65781.0,65778.0,0.17640745]
[1727461976469,0.001656,65781.0,65780.0,0.152021]
[1727461977848,0.001656,65781.0,65780.0,0.161021]
[1727461978092,0.001656,65781.0,65780.0,0.16406099]
[1727461979024,0.001656,65781.0,65780.0,0.15506099]
[1727461979649,0.001656,65781.0,65780.0,0.16506099]
[1727461980481,0.001656,65781.0,65780.0,0.17706099]
[1727461980692,0.001656,65781.0,65780.0,0.35042845]
[1727461985403,0.001656,65781.0,65780.0,0.19840745]
[1727461986091,0.2553692,65781.0,65780.0,0.022]
[1727461986828,0.27091217,65781.0,65780.0,0.022]
[1727461987024,0.27091217,65781.0,65780.0,0.012]
[1727461987495,0.16921797,65781.0,65780.0,0.17640745]
[1727461987712,0.154675,65781.0,65780.0,0.17640745]
[1727461988627,0.153675,65781.0,65780.0,0.17640745]
[1727461988852,0.153675,65781.0,65780.0,0.18365528]
[1727461989080,0.154675,65781.0,65780.0,0.18240745]
[1727461989329,0.154675,65781.0,65780.0,0.18965528]
[1727461989590,0.153675,65781.0,65780.0,0.006]
[1727461989806,0.153675,65781.0,65780.0,0.01]
[1727461990965,0.153675,65781.0,65780.0,0.01724783]
[1727461991397,0.153675,65781.0,65780.0,0.18640745]
[1727461991823,0.153675,65781.0,65780.0,0.19365528]
[1727461992060,0.001656,65781.0,65780.0,0.19365528]
[1727461992941,0.1747692,65781.0,65780.0,0.01724783]
[1727461993163,0.27171099,65781.0,65780.0,0.01724783]
[1727461993410,0.27171099,65781.0,65780.0,0.01]
[1727461993411,0.37021099,65781.0,65780.0,0.01]
[1727461993632,0.3513692,65781.0,65780.0,0.01]
[1727461994059,0.3513692,65781.0,65780.0,0.006]
[1727461994600,0.1993502,65781.0,65772.0,0.17640745]
[1727461994818,0.152028,65777.0,65776.0,0.17640745]
[1727461995313,0.002,65779.0,65772.0,0.17640745]
[1727461995534,0.02167199,65779.0,65772.0,0.17640745]
[1727461995788,0.304072,65774.0,65773.0,0.17640745]
[1727461996010,0.02167199,65779.0,65773.0,0.17640745]
[1727461996011,0.304055,65778.0,65773.0,0.17640745]
[1727461996229,0.304055,65778.0,65777.0,0.17640745]
[1727461996446,0.001656,65781.0,65777.0,0.17640745]
[1727461996660,0.153677,65781.0,65777.0,0.17944768]
[1727461996883,0.152025,65779.0,65777.0,0.17640745]
[1727461997352,0.001656,65781.0,65777.0,0.32843545]
[1727461997577,0.001656,65781.0,65778.0,0.15927391]
[1727461997812,0.001656,65781.0,65780.0,0.152021]
[1727461998063,0.001656,65781.0,65780.0,0.15506111]
[1727461998315,0.001656,65781.0,65780.0,0.16230894]
[1727461999221,0.001656,65781.0,65780.0,0.16630894]
[1727461999693,0.001656,65781.0,65780.0,0.16830894]
[1727461999936,0.001656,65781.0,65780.0,0.01628794]
[1727462002010,0.001656,65781.0,65780.0,0.16830894]
[1727462003584,0.001656,65781.0,65780.0,0.01628794]
[1727462003841,0.001656,65781.0,65780.0,0.16830894]
[1727462005427,0.001656,65781.0,65780.0,0.24630894]
[1727462006567,0.001656,65781.0,65780.0,0.24430894]
[1727462007182,0.001656,65781.0,65780.0,0.24030894]
[1727462007428,0.001656,65781.0,65780.0,0.25230894]
[1727462007881,0.001656,65781.0,65780.0,0.26730894]
[1727462008583,0.22645098,65793.0,65792.0,0.151994]
[1727462008766,0.22645098,65793.0,65792.0,0.33144101]
[1727462008940,0.001656,65794.0,65793.0,0.151991]
[1727462009145,0.001656,65794.0,65793.0,0.15503044]
[1727462009343,0.001656,65794.0,65793.0,0.01011061]
[1727462009547,0.001656,65794.0,65793.0,0.16210161]
[1727462011501,0.001656,65794.0,65793.0,0.18410161]
[1727462011958,0.001656,65794.0,65793.0,0.17510161]
[1727462012398,0.001656,65794.0,65793.0,0.18610161]
[1727462012616,0.001656,65794.0,65793.0,0.18306217]
[1727462012850,0.001656,65794.0,65793.0,0.03107117]
[1727462013500,0.001656,65794.0,65793.0,0.18306217]
[1727462013956,0.001656,65794.0,65793.0,0.03107117]
[1727462014401,0.001656,65794.0,65793.0,0.18306217]
[1727462014844,0.001656,65794.0,65793.0,0.03107117]
[1727462016198,0.153645,65794.0,65793.0,0.03107117]
[1727462016433,0.001656,65794.0,65793.0,0.03107117]
[1727462016648,0.153645,65794.0,65793.0,0.03107117]
[1727462016877,0.001656,65794.0,65793.0,0.18306217]
[1727462017355,0.001656,65794.0,65793.0,0.03107117]
[1727462018979,0.153645,65794.0,65793.0,0.03107117]
[1727462019657,0.153645,65794.0,65793.0,0.024]
[1727462020539,0.153645,65794.0,65793.0,0.011]
[1727462021027,0.153645,65794.0,65793.0,0.00692571]
[1727462021028,0.457625,65794.0,65793.0,0.00692571]
[1727462021241,0.457625,65794.0,65793.0,0.02692571]
[1727462021508,0.457625,65794.0,65793.0,0.01592571]
[1727462021735,0.457625,65794.0,65793.0,0.01392571]
[1727462021962,0.457625,65794.0,65793.0,0.01892571]
[1727462023526,0.459625,65794.0,65793.0,0.01892571]
[1727462024247,0.459625,65794.0,65793.0,0.012]
[1727462024940,0.457625,65794.0,65793.0,0.012]
[1727462025395,0.459625,65794.0,65793.0,0.01892571]
[1727462026244,0.459625,65794.0,65793.0,0.012]
[1727462027335,0.457625,65794.0,65793.0,0.012]
[1727462027558,0.153645,65794.0,65793.0,0.012]
[1727462027781,0.001656,65794.0,65793.0,0.01503949]
[1727462028018,0.153645,65794.0,65793.0,0.01903286]
[1727462029213,0.153645,65794.0,65793.0,0.012]
[1727462030231,0.153645,65794.0,65793.0,0.01903286]
[1727462030948,0.155645,65794.0,65793.0,0.01903286]
[1727462031191,0.232645,65794.0,65793.0,0.01903286]
[1727462031423,0.232645,65794.0,65793.0,0.012]
[1727462031424,0.32676113,65794.0,65793.0,0.012]
[1727462031917,0.25023733,65794.0,65793.0,0.012]
[1727462032160,0.25023733,65794.0,65793.0,0.007]
[1727462032628,0.152005,65787.0,65786.0,0.17640745]
[1727462034051,0.154005,65787.0,65786.0,0.17640745]
[1727462034277,0.152005,65787.0,65786.0,0.17640745]
[1727462034463,0.152005,65787.0,65786.0,0.18240745]
[1727462034728,0.152005,65787.0,65786.0,0.18640745]